Cogmind - Beta 14 @@@ ROGUE MODE // 2025.01.04 @ 21:01:24 Player: jumpy Result: Destroyed by G-34 Mercenary with Small Laser Performance ------------- Evolutions (1) 500 Regions Visited (3) 600 Robots Destroyed (19) 95 Value Destroyed (501) 501 Prototype IDs (1) 20 Alien Tech Used (0) 0 Bonus (0) 0 TOTAL SCORE: 1716 Bonus ------- None Cogmind --------- Core Integrity 0/400 Matter 233/300 Energy 100/100 System Corruption 0% Temperature Cool (6) Movement Core (150) Ox2 Location -9/Materials Parts ------- > --- POWER (1) -------- (None) > --- PROPULSION (2) --- (None) > --- UTILITY (4) ------ Small Storage Unit > --- WEAPON (2) ------- Assault Rifle Light Assault Rifle > --- INVENTORY (8) ---- Ion Engine Medium Laser Rocket Launcher Peak State ------------ > --- POWER ------------ Ion Engine > --- PROPULSION ------- Wheel Compact Wheel > --- UTILITY ---------- Small Storage Unit Experimental Sensor Array > --- WEAPON ----------- Minigun Minigun > --- INVENTORY -------- Ion Engine Seismic Detector Weapon Shielding Improved Weapon Shielding Medium Laser Medium Laser Assault Rifle Light Assault Rifle [Rating: 20] Favorites ----------- Power Ion Engine Engine Ion Engine Propulsion Wheel Treads Light Treads Wheel Wheel Utility Small Storage Unit Device Seismic Detector Storage Small Storage Unit Protection Improved Weapon Shielding Weapon Medium Laser Energy Gun Medium Laser Ballistic Gun Minigun Build | -11 -10 -10 -9 ------- Run | Yrd Mat Min Mat Slots Evolved 2 | . . . 2 Power . | . . . . Propulsion . | . . . . Utility 2 | . . . 2 Weapon . | . . . . Parts Attached 32 | 7 1 11 13 Power 3 | 1 . . 2 Engine 3 | 1 . . 2 Core . | . . . . Reactor . | . . . . Propulsion 7 | 2 . 2 3 Treads 1 | . . . 1 Leg . | . . . . Wheel 6 | 2 . 2 2 Hover . | . . . . Flight . | . . . . Utility 10 | 1 1 3 5 Device 2 | . . 1 1 Storage 2 | 1 . . 1 Processor . | . . . . Hackware . | . . . . Protection 6 | . 1 2 3 Artifact . | . . . . Weapon 12 | 3 . 6 3 Energy Gun 3 | 1 . 2 . Energy Cannon . | . . . . Ballistic Gun 9 | 2 . 4 3 Ballistic Cannon . | . . . . Launcher . | . . . . Special Weapon . | . . . . Impact Weapon . | . . . . Slashing Weapon . | . . . . Piercing Weapon . | . . . . Special Melee Weapon . | . . . . Unidentified Prototypes 1 | . . 1 . Parts Lost 12 | . . . 12 Power 1 | . . . 1 Propulsion 5 | . . . 5 Utility 4 | . . . 4 Weapon 2 | . . . 2 Highest Loss Streak 6 | . . . 6 To Critical Strikes . | . . . . Average Slot Usage (%) 92 | . 98 100 86 Engine 12 | . 14 14 10 Treads 3 | . . . 7 Wheel 18 | . 28 28 9 Storage 12 | . 14 14 11 Protection 19 | . 12 14 24 Energy Gun 13 | . 14 14 12 Ballistic Gun 11 | . 14 13 9 Peak Build Rating 20 | 6 7 20 13 Average Rating 10 | 4 6 10 10 On Entrance 5 | . 6 7 10 Naked Turns . | . . . . Heaviest Build 21 | 14 15 18 21 Greatest Support 26 | 26 26 26 20 Greatest Overweight (x) 5 | . . 1 5 Average Overweight (x) . | . . . 1 Largest Inventory Capacity 8 | 8 8 8 8 Average Capacity 7 | 6 8 8 7 Most Carried 8 | 2 2 8 6 Average Carried 4 | 1 2 6 4 Final Capacity 8 | 8 8 8 8 Final Carried 7 | 2 2 7 3 Class Distribution -------------------- 100% | Mutant Dominant Class ---------------- Mutant | -10/Materials Mutant | -10/Mines Mutant | -9/Materials Resources | -11 -10 -10 -9 ----------- Run | Yrd Mat Min Mat Matter Collected 519 | 249 . 126 144 Remotely . | . . . . Salvage Created 676 | . . 72 604 Parts 42 | . . 6 36 Haulers Intercepted . | . . . . Recyclers Shooed 1 | . . . 1 Parts Field Recycled . | . . . . Retrieved Matter . | . . . . Parts Self-Destructed . | . . . . Prevented . | . . . . Kills | -11 -10 -10 -9 ------- Run | Yrd Mat Min Mat Combat Hostiles Destroyed 14 | . . . 14 Guns 14 | . . . 14 Classes Destroyed 7 | . . 2 5 Worker 2 | . . 1 1 Tunneler 1 | . . . 1 Recycler 1 | . . 1 . Watcher 1 | . . . 1 Swarmer 3 | . . . 3 Grunt 5 | . . . 5 Sentry 6 | . . . 6 Best Kill Streak 5 | . . 2 5 Combat Bots Only 5 | . . . 5 Max Kills in Single Turn 1 | . . 1 1 Gunslinging . | . . . . Exploded . | . . . . Melee . | . . . . Uniques/NPCs Destroyed . | . . . . Combat | -11 -10 -10 -9 -------- Run | Yrd Mat Min Mat Hostile Shots Fired 164 | . 3 . 161 Missed 44 | . 2 . 42 Damage Taken 1516 | 6 13 64 1433 Core 414 | 2 . 10 402 Absorbed by Shields . | . . . . Redirected to Shielding 152 | . 4 5 143 Core Remaining (%) 97 | 99 . 95 . Volleys Fired 50 | . . 3 47 Largest 2 | . . 2 2 Hottest 100 | . . 100 100 Shots Fired 98 | . . 6 92 Gun 98 | . . 6 92 Cannon . | . . . . Launcher . | . . . . Special . | . . . . Kinetic 50 | . . . 50 Thermal 48 | . . 6 42 Explosive . | . . . . Electromagnetic . | . . . . Robot Hit Streak 11 | . . 5 11 Robot Miss Streak 3 | . . . 3 Penetration Max . | . . . . Secondary Targets 8 | . . . 8 Max Gunslinging Chain 1 | . . . 1 Shots Hit Robots 73 | . . 5 68 Core Hits 34 | . . 5 29 Critical Kills . | . . . . Critical Parts Destroyed . | . . . . Critical Strikes 5 | . . . 5 Burn 5 | . . . 5 Melee Attacks . | . . . . Impact . | . . . . Slashing . | . . . . Piercing . | . . . . Sneak Attacks . | . . . . Combat Hostiles . | . . . . Follow-up Attacks . | . . . . Damage Inflicted 1069 | 12 . 134 923 Guns 985 | . . 63 922 Cannons . | . . . . Explosions . | . . . . Melee . | . . . . Ramming 84 | 12 . 71 1 Kinetic 512 | . . . 512 Thermal 473 | . . 63 410 Explosive . | . . . . Electromagnetic . | . . . . Impact . | . . . . Slashing . | . . . . Piercing . | . . . . Highest Corruption 1 | . . 1 . Average Corruption 1 | . . 1 . Corruption Purged . | . . . . Corruption Blocked . | . . . . Effects 1 | . . 1 . Data Loss (minor) 1 | . . 1 . Overload Shots . | . . . . Overflow Damage . | . . . . Projectiles . | . . . . Explosions . | . . . . Melee . | . . . . Knockbacks 1 | . . 1 . Impact 1 | . . 1 . Kinetic . | . . . . Secondary . | . . . . Self-Inflicted Damage 40 | 6 . 34 . Shots . | . . . . Rammed 17 | 2 . 14 1 Targets Rammed 17 | 2 . 14 1 Kicked . | . . . . Crushed . | . . . . Highest Temperature 232 | . . 78 232 Average Temperature 75 | . . 37 79 Received Heat Transfer 588 | . 9 . 579 Siege Activations . | . . . . Robots Corrupted . | . . . . Combat Hostiles . | . . . . Parts Fried . | . . . . Impact Corruptions . | . . . . Robots Melted . | . . . . Combat Hostiles . | . . . . Parts Melted 6 | . . . 6 Heat Transferred 1776 | . . 185 1591 Parts Sabotaged . | . . . . Parts Stolen . | . . . . Parts Stripped . | . . . . Power Chain Reactions . | . . . . Alert | -11 -10 -10 -9 ------- Run | Yrd Mat Min Mat Peak Influence 178 | . . 10 178 Initial . | . . . . Average 43 | . . 2 91 Maximum Alert Level . | . . . . Low Security (%) 100 | 100 100 100 100 Level 1 . | . . . . Level 2 . | . . . . Level 3 . | . . . . Level 4 . | . . . . Level 5 . | . . . . High Security . | . . . . Max Security . | . . . . Squads Dispatched 1 | . . . 1 Investigation . | . . . . Extermination . | . . . . Reinforcement 1 | . . . 1 Assault . | . . . . Garrison . | . . . . Intercept . | . . . . Searches Triggered . | . . . . Construction Impeded . | . . . . Haulers Reinforced . | . . . . Active Scanning Responses . | . . . . Cargo Convoy Interrupts . | . . . . Stealth | -11 -10 -10 -9 --------- Run | Yrd Mat Min Mat Distress Signals 3 | . 1 . 2 Communications Jammed . | . . . . Distress Signals . | . . . . Times Spotted 29 | . 4 2 23 Peak Tracking Total 7 | . 4 1 7 Tactical Retreats . | . . . . Traps | -11 -10 -10 -9 ------- Run | Yrd Mat Min Mat Traps Triggered 1 | . . 1 . Indirectly . | . . . . Trap Hack Attempts . | . . . . Triggered . | . . . . Disarmed . | . . . . Reprogrammed . | . . . . Reused . | . . . . Traps Extracted . | . . . . Installed . | . . . . Triggered . | . . . . Machines | -11 -10 -10 -9 ---------- Run | Yrd Mat Min Mat Machines Disabled . | . . . . Max in Single Turn . | . . . . Machines Repaired . | . . . . Machines Dismantled . | . . . . Machines Sabotaged . | . . . . Overloaded Fab Kills . | . . . . Hacking | -11 -10 -10 -9 --------- Run | Yrd Mat Min Mat Machines Accessed 1 | . . 1 . Terminals . | . . . . Fabricators . | . . . . Repair Stations . | . . . . Recycling Units . | . . . . Scanalyzers . | . . . . Garrison Access . | . . . . Total Hacks 1 | . . 1 . Successful 1 | . . 1 . Failed . | . . . . Catastrophic . | . . . . Database Lockouts . | . . . . Manual . | . . . . Terminals . | . . . . Fabricators . | . . . . Repair Stations . | . . . . Recycling Units . | . . . . Scanalyzers . | . . . . Garrison Access . | . . . . Terminal Hacks 1 | . . 1 . Open Door 1 | . . 1 . Fabricator Hacks . | . . . . Repair Station Hacks . | . . . . Recycling Unit Hacks . | . . . . Scanalyzer . | . . . . Garrison Access Hacks . | . . . . Unauthorized Hacks . | . . . . Terminals . | . . . . Fabricators . | . . . . Repair Stations . | . . . . Recycling Units . | . . . . Scanalyzers . | . . . . Garrison Access . | . . . . Data Cores Recovered . | . . . . Used . | . . . . Hacking Detections . | . . . . Full Trace Events . | . . . . Feedback Events . | . . . . Feedback Blocked . | . . . . Robot Schematics Acquired . | . . . . Robots Built . | . . . . Authchips . | . . . . Time . | . . . . Total Robot Build Rating . | . . . . Part Schematics Acquired . | . . . . Parts Built . | . . . . Authchips . | . . . . Time . | . . . . Total Part Build Rating . | . . . . Parts Repaired . | . . . . Time . | . . . . Parts Recycled . | . . . . Recycled Matter . | . . . . Retrieved Matter . | . . . . Retrieved Components . | . . . . Parts Scanalyzed . | . . . . Part Schematics Acquired . | . . . . Parts Damaged . | . . . . Bothacking | -11 -10 -10 -9 ------------ Run | Yrd Mat Min Mat Used RIF Installer . | . . . . Robots Hacked . | . . . . Non-combat . | . . . . Combat . | . . . . Robot Hacks Applied . | . . . . Relay Couplers Released . | . . . . Fabnet Peak Effective % . | . . . . Robots Rewired . | . . . . Allies Hacked . | . . . . Hacks Repelled . | . . . . Allies | -11 -10 -10 -9 -------- Run | Yrd Mat Min Mat Total Allies . | . . . . Largest Group . | . . . . Highest-Rated Group . | . . . . Highest-Rated Ally . | . . . . Total Orders . | . . . . Ally Attacks . | . . . . Total Damage . | . . . . Kills . | . . . . Allies Corrupted . | . . . . Allies Melted . | . . . . Intel | -11 -10 -10 -9 ------- Run | Yrd Mat Min Mat Robot Analysis Total . | . . . . Derelict Logs Recovered 2 | . . 2 . Drone Launches . | . . . . Drone Recoveries . | . . . . Exploration | -11 -10 -10 -9 ------------- Run | Yrd Mat Min Mat Turns Passed 1157 | 91 115 414 537 Spaces Moved 809 | 89 127 401 192 Core 27 | 9 . . 18 Treads 124 | . . . 124 Legs . | . . . . Wheels 658 | 80 127 401 50 Hover . | . . . . Flight . | . . . . Fastest Speed 50 | 50 90 80 80 Average Speed 114 | 86 90 87 199 Slowest Speed 300 | 100 90 95 300 Overloaded Moves . | . . . . Propulsion Burnouts . | . . . . Robots Hopped . | . . . . Cave-ins Triggered . | . . . . Exploration Rate (%) 31 | 4 26 73 21 Regions Visited 3 Branch Regions 1 Pre-discovered Areas 1 | . . 1 . Known Exits Taken . | . . . . Unknown Exits Taken 3 | 1 1 1 . Scrap Searched 2 | . . 2 . Spaces Dug . | . . . . Terrain Destroyed . | . . . . Melee . | . . . . Projectile . | . . . . AOE . | . . . . Terrain Rammed . | . . . . Walls Destroyed . | . . . . Machines Disabled . | . . . . Actions | -11 -10 -10 -9 --------- Run | Yrd Mat Min Mat Total 941 | 99 127 457 258 Wait 17 | . . 15 2 Move 806 | 88 126 400 192 Hop . | . . . . Pick Up 9 | 2 . 7 . Fast Attach 12 | 6 1 . 5 Attach 9 | . . 5 4 Detach 3 | . . 3 . Swap 11 | 1 . 6 4 Drop 7 | . . 4 3 Fire 50 | . . 3 47 Melee . | . . . . Ram 17 | 2 . 14 1 Kick . | . . . . Crush . | . . . . Escape Stasis . | . . . . Rewire . | . . . . Trap . | . . . . Miscellaneous . | . . . . Route ------- -11/Scrapyard -10/Materials -10/Mines -9/Materials (discovered 1 exit: *Min) History --------- Turn | Location | Event 22 | -11/Scrapyard | Discovered new exit (range 15) 92 | -11/Scrapyard | Entered Materials 197 | -10/Materials | Discovered new exit (range 13) 207 | -10/Materials | Entered Mines 224 | -10/Mines | Learned Materials emergency access door positions 240 | -10/Mines | Met a Derelict who couldn't figure out how to use a Trap Extractor 312 | -10/Mines | Build established: Mutant 428 | -10/Mines | Found a damaged Exp. Sensor Array with a note attached 430 | -10/Mines | Found Prototype Device 431 | -10/Mines | Identified Exp. Sensor Array 461 | -10/Mines | Received a Rocket Launcher from a helpful Derelict 531 | -10/Mines | Joined a pair of Derelicts in attacking an 0b10 outpost 614 | -10/Mines | Discovered new exit (range 9) 617 | -10/Mines | Learned location of Storage (-8) 621 | -10/Mines | Entered Materials 621 | -9/Materials | Evolved 2 slots: Utility x2 622 | -9/Materials | Identified exit to Mines 1055 | -9/Materials | Lost 4 parts (2n2u) 1108 | -9/Materials | Core integrity fell below 50% 1130 | -9/Materials | Core integrity fell below 20% 1157 | -9/Materials | Lost 6 parts (1p2n1u2w) 1158 | -9/Materials | Destroyed by G-34 Mercenary with Small Laser Last Messages --------------- 01106_ Slammed into G-34 Mercenary. 01111_ G-34 Mercenary suffers critical hit (Burn). 01112_ Med. Laser destroyed. 01116_ Minigun destroyed. 01126_ Ion Engine destroyed. 01134_ G-34 Mercenary destroyed. 01134_ Switching to secondary target: Y-45 Defender. 01135_ Acquired 34 matter. 01138_ K-01 Serf collects debris. 01141_ K-01 Serf cleans the Neutrino Reactor. 01142_ R-06 Scavenger collects Lgt. Treads. 01144_ K-01 Serf cleans the Neutrino Reactor. 01145_ Y-45 Defender destroyed. 01145_ Switching to secondary target: Y-45 Defender. 01147_ K-01 Serf collects debris. 01151_ Y-45 Defender destroyed. 01152_ K-01 Serf collects debris. 01153_ G-34 Mercenary destroyed. 01153_ Switching to secondary target: G-34 Mercenary. 01154_ K-01 Serf collects debris. Map ----- +----------------------------------------------------+ | ############## #???????????????????????????????? | | =%=%=[ #???????????????????????????????? | | [%* #???????????????????????????????? | | % % #?????? ????????????????????????? | | ######+#### ##?????? #???????????+???????????? | | ?#]!* # #?????? #???????????????????????? | | ?#]!* """ # % #?????? #???????????????????????? | | ?#!** """ # #?????? #???????????????????????? | | ?# """ # #?????? #???????????????????????? | | ?# # #?????? #???????????????????????? | | ?# """ # #?????" #???????????????????????? | | ?# """ # #?????" ???????????????????????? | | ?# ????# #?????" ????????????????????????? | | ?# ????# #????? ?########???????????????? | | ?#####????# #######"## ##+#????????????? | | ??????????# T???????????? | | ??????????#! % > ???????????? | | ??????????# ^ """ ???????????? | | ??????????# "T ##" "##??????????????? | | ??????????#^ """ #???!"| "#???????????????? | | ??????????# """ #?????"?"????????????????? | | ?????????"" ^""" #??????#?????????????????? | | ????????#"T ###### ##????????????????? | | ????????#"" ^ ^ =[#! ][[ #????????????????? | | ?????????## """ """=!#%T ][ #????????????????? | | ??????????# """ """kg/@[ ][ #????????????????? | | ?????????? ! """ """*m#=[ #????????????????? | | ??????????# ?? #= #????????????????? | | ??????????? ?? #########????????????????? | | ?????????????######## #????????????????????????? | | ????????????????????# +????????????????????????? | | ????????????????????# #????????????????????????? | | ????????????????????# #????????????????????????? | | ????????????????????# ?????????????????????????? | | ????????????????????# ?????????????????????????? | | ????????????????????# ?????????????????????????? | | ????????????????????+ ?????????????????????????? | | ????????????????????# ?????????????????????????? | | ????????????????????####?????????????????????????? | | ?????????????????????????????????????????????????? | | ?????????????????????????????????????????????????? | | ???????????????????+?????????????????????????????? | | ?????????????????????????????????????????????????? | | ?????????????????????????????????????????????????? | | ?????????????????????+???????????????????????????? | | ?????????????????????????????????????????????????? | | ?????????????????????????????????????????????????? | | ?????????????????????????????????????????????????? | | ?????????????????????????????????????????????????? | | ?????????????????????????????????????????????????? | +----------------------------------------------------+ Best States ------------- Heat Dissipation 28 Energy Generation 10 Energy Capacity 250 Matter Stores 300 Matter Capacity 300 Sight Range 16 Terrain Scan Density 10 Armor Coverage 150 Weapon Shielding 66 Evasion (%) 44 Recoil Reduction 1 Item Schematics ----------------- None Robot Schematics ------------------ None Fabricated ------------ Nothing Alien Tech Used ----------------- None Achievements -------------- None Challenges ------------ None Game ------ Seed CobblerMassBoomstick Manual? 0 Play Time 00:10:42 Cumulative 10.6 hours Start 2025.01.04 @ 20:53:22 End 2025.01.04 @ 21:01:24 Sessions 1 Manual Loads 0 Difficulty Rogue Special Mode None Game No. 29 Rogue 29 Adventurer 0 Explorer 0 Win Type - Total 0 Types 0/0/0/0/0/0/0/0/0 Lore% 5 Gallery% 20 Achievement% 17 Wizard Run 0 Options --------- Layout 0 ASCII 0 Keyboard 0 Movement Numpad Keybinds 0 Fullscreen 2 Font 18/Terminus Map View 76x50 Zoom Use 5% Tactical HUD 1 Map Filters NONE Filters NONE Steam 1 RUN: 1d699701-4704-49e2-b641-6fc85e38fdae